bitfinex/quotes_SOLUSD_20241123
["timestamp","ask_amount","ask_price","bid_price","bid_amount"]
[1732346050776,2.87013455,258.74,258.59,20.0]
[1732346051076,23.776884,258.72,258.59,20.0]
[1732346051264,23.776884,258.7,258.59,20.0]
[1732346051461,2.87013455,258.69,258.59,20.0]
[1732346051670,4.5925765,258.71,258.59,20.0]
[1732346051980,26.64719279,258.7,258.59,20.0]
[1732346052163,23.776884,258.7,258.59,20.0]
[1732346052572,2.8703104,258.69,258.59,20.0]
[1732346052860,2.8703104,258.68,258.59,20.0]
[1732346053076,23.776884,258.7,258.59,20.0]
[1732346053660,20.0,258.76,258.59,20.0]
[1732346053871,5.20834974,258.77,258.59,20.0]
[1732346055160,20.0,258.76,258.59,20.0]
[1732346055377,23.776884,258.75,258.59,20.0]
[1732346056159,20.0,258.74,258.59,20.0]
[1732346056758,20.0,258.76,258.61,20.0]
[1732346056968,23.776884,258.75,258.61,20.0]
[1732346058563,18.17015475,258.78,258.61,20.0]
[1732346058564,15.394902,258.78,258.63,20.0]
[1732346060150,23.776884,258.77,258.63,20.0]
[1732346064354,5.20834974,258.74,258.62,15.2521]
[1732346064542,23.776884,258.73,258.62,15.2521]
[1732346065548,20.0,258.77,258.62,15.2521]
[1732346066831,23.776884,258.76,258.62,15.2521]
[1732346067053,20.0,258.75,258.62,15.2521]
[1732346067830,23.776884,258.74,258.62,15.2521]
[1732346069557,23.776884,258.7,258.62,15.2521]
[1732346069760,23.776884,258.68,258.62,15.2521]
[1732346074163,43.776884,258.7,258.62,15.2521]
[1732346075164,5.20834974,258.67,258.55,15.3617]
[1732346075371,43.776884,258.64,258.55,15.3617]
[1732346076158,23.776884,258.67,258.55,15.3617]
[1732346076362,20.0,258.62,258.45,15.3617]
[1732346076539,23.776884,258.61,258.45,15.3617]
[1732346077564,23.776884,258.61,258.46,20.0]
[1732346079759,20.0,258.6,258.46,20.0]
[1732346080063,23.776884,258.61,258.46,20.0]
[1732346080265,23.776884,258.59,258.46,20.0]
[1732346088951,2.84455066,258.63,258.46,20.0]
[1732346089178,20.0,258.64,258.47,21.5863]
[1732346089473,20.0,258.69,258.48,20.0]
[1732346089769,20.0,258.67,258.48,20.0]
[1732346089985,5.20834974,258.68,258.48,20.0]
[1732346090752,23.776884,258.67,258.48,20.0]
[1732346091571,20.0,258.7,258.48,20.0]
[1732346091770,20.0,258.67,258.48,20.0]
[1732346092780,23.776884,258.66,258.48,20.0]
[1732346093073,23.776884,258.64,258.48,20.0]
[1732346095269,20.0,258.63,258.48,20.0]
[1732346095573,23.776884,258.58,258.47,21.5863]
[1732346100488,23.776884,258.56,258.47,21.5863]
[1732346102888,15.407094,258.57,258.47,21.5863]
[1732346103257,15.407094,258.57,258.48,20.0]
[1732346104860,2.78513227,258.65,258.48,20.0]
[1732346105083,15.403852,258.64,258.48,20.0]
[1732346105592,23.776884,258.63,258.48,20.0]
[1732346107558,20.0,258.62,258.48,20.0]
[1732346107762,23.776884,258.61,258.48,20.0]
[1732346109886,20.0,258.63,258.48,20.0]
[1732346111089,23.776884,258.62,258.48,20.0]
[1732346113192,2.87130665,258.61,258.48,20.0]
[1732346113391,15.403852,258.64,258.48,20.0]
[1732346113392,2.87130665,258.6,258.48,20.0]
[1732346113574,15.403852,258.64,258.5,20.0]
[1732346113768,2.87267055,258.63,258.5,20.0]
[1732346113992,7.46894234,258.63,258.51,15.974]
[1732346114297,2.87267055,258.62,258.51,15.974]
[1732346114502,2.87267055,258.61,258.51,15.974]
[1732346114672,7.46894234,258.63,258.51,15.974]
[1732346114876,15.403852,258.64,258.51,15.974]
[1732346115191,7.4732797,258.63,258.51,15.974]
[1732346115376,2.87406728,258.62,258.51,15.974]
[1732346115689,2.87406728,258.61,258.51,15.974]
[1732346115896,15.403852,258.64,258.51,15.974]
[1732346115897,4.59921145,258.63,258.51,15.974]
[1732346116071,2.87452536,258.62,258.51,15.974]
[1732346116272,2.87452536,258.61,258.51,15.974]
[1732346116579,4.59921145,258.63,258.51,15.974]
[1732346116896,2.87502684,258.62,258.51,15.974]
[1732346117187,2.87502684,258.61,258.51,15.974]
[1732346117416,4.59921145,258.63,258.51,15.974]
[1732346117569,2.87547513,258.62,258.51,15.974]
[1732346117770,2.87547513,258.61,258.51,15.974]
[1732346118094,2.87547513,258.6,258.51,15.974]
[1732346118300,4.59921145,258.63,258.51,15.974]
[1732346118587,2.87612168,258.62,258.51,15.974]
[1732346118793,2.87612168,258.61,258.51,15.974]
[1732346119107,2.87612168,258.6,258.51,15.974]
[1732346119396,2.87612168,258.59,258.51,15.974]
[1732346119714,4.59921145,258.63,258.51,15.974]
[1732346119995,26.65377404,258.62,258.51,15.974]
[1732346120296,7.47610149,258.61,258.51,15.974]
[1732346124590,23.776884,258.6,258.51,15.974]
[1732346124787,7.47610149,258.59,258.51,15.974]
[1732346126281,26.65377404,258.58,258.51,15.974]
[1732346126604,7.47610149,258.57,258.51,15.974]
[1732346127287,2.87689004,258.57,258.51,15.974]
[1732346127510,2.87689004,258.61,258.51,15.974]
[1732346127702,2.87809894,258.6,258.51,15.974]
[1732346128085,2.87809894,258.59,258.51,15.974]
[1732346128391,2.87809894,258.58,258.51,15.974]
[1732346128599,2.87809894,258.57,258.51,15.974]
[1732346128895,4.60495831,258.61,258.51,15.974]
[1732346129102,2.87807847,258.6,258.51,15.974]
[1732346129405,2.87807847,258.59,258.51,15.974]
[1732346129596,4.60495831,258.61,258.51,15.974]
[1732346129597,2.87807847,258.58,258.51,15.974]
[1732346129799,2.87807847,258.57,258.51,15.974]
[1732346130107,4.60495831,258.61,258.51,15.974]
[1732346130280,2.87838395,258.6,258.51,15.974]
[1732346130479,2.87838395,258.59,258.51,15.974]
[1732346130780,2.87838395,258.58,258.51,15.974]
[1732346130981,2.87838395,258.57,258.51,15.974]
[1732346131279,4.60495831,258.61,258.51,15.974]
[1732346131479,2.87858359,258.6,258.51,15.974]
[1732346131779,2.87858359,258.59,258.51,15.974]
[1732346132096,2.87858359,258.58,258.51,15.974]
[1732346132283,2.87858359,258.57,258.51,15.974]
[1732346132488,4.60495831,258.61,258.51,15.974]
[1732346132679,2.87874462,258.6,258.51,15.974]
[1732346132880,2.87874462,258.59,258.51,15.974]
[1732346133101,2.87874462,258.58,258.51,15.974]
[1732346133295,4.60495831,258.63,258.54,16.5627]
[1732346133596,7.4836179,258.63,258.55,20.0]
[1732346133790,2.87865959,258.62,258.55,20.0]
[1732346133995,6.02364948,258.7,258.55,20.0]
[1732346134329,15.399842,258.65,258.55,20.5800158]
[1732346134504,4.60504442,258.71,258.57,20.0]
[1732346134802,14.92445413,258.7,258.6,20.0]
[1732346135103,2.73520381,258.76,258.6,20.0]
[1732346135104,2.87715513,258.69,258.6,20.0]
[1732346135279,12.047299,258.71,258.6,20.0]
[1732346135600,2.8747853,258.7,258.6,20.0]
[1732346135791,12.047299,258.71,258.6,20.0]
[1732346135989,2.87482628,258.7,258.6,20.0]
[1732346136190,12.047299,258.71,258.6,20.0]
[1732346137788,23.776884,258.79,258.62,20.0]
[1732346138098,23.776884,258.77,258.62,20.0]
[1732346138306,2.87128651,258.76,258.62,20.0]
[1732346138478,23.776884,258.78,258.62,20.0]
[1732346138686,2.86915364,258.77,258.62,20.0]
[1732346138880,2.86915364,258.76,258.62,20.0]
[1732346139209,12.047299,258.79,258.62,20.0]
[1732346139505,2.86721868,258.78,258.62,20.0]
[1732346139680,2.86721868,258.77,258.62,20.0]
[1732346139874,12.047299,258.79,258.62,20.0]
[1732346140093,7.45515301,258.78,258.62,20.0]
[1732346140285,2.86736654,258.77,258.62,20.0]
[1732346140495,43.776884,258.78,258.62,20.0]
[1732346140799,2.86606644,258.77,258.62,20.0]
[1732346140979,20.0,258.78,258.62,20.0]
[1732346141175,2.86608284,258.77,258.62,20.0]
[1732346141375,20.0,258.78,258.62,20.0]
[1732346141592,2.86494453,258.77,258.62,20.0]
[1732346141794,20.0,258.78,258.62,20.0]
[1732346141999,2.8649471,258.77,258.62,20.0]
[1732346142291,20.0,258.78,258.62,20.0]
[1732346142493,2.864147,258.77,258.62,20.0]
[1732346142695,20.0,258.78,258.62,20.0]
[1732346142896,2.86414799,258.77,258.62,20.0]
[1732346143097,43.776884,258.78,258.62,20.0]
[1732346143288,2.86420646,258.77,258.62,20.0]
[1732346143490,43.776884,258.78,258.62,20.0]
[1732346144788,2.86292132,258.77,258.62,20.0]
[1732346144983,43.776884,258.78,258.62,20.0]
[1732346147588,2.86187953,258.77,258.62,20.0]
[1732346147790,43.776884,258.78,258.62,20.0]
[1732346149686,43.776884,258.78,258.55,0.57978035]
[1732346149687,20.0,258.78,258.63,22.1884]
[1732346149886,20.0,258.78,258.64,20.0]
[1732346154408,12.047299,258.79,258.64,20.0]
[1732346156004,12.047299,258.79,258.65,16.0818]
[1732346156213,12.047299,258.79,258.66,20.0]
[1732346159891,23.776884,258.78,258.66,20.0]
[1732346160217,23.776884,258.78,258.65,16.0818]
[1732346162119,20.0,258.75,258.65,16.0818]
[1732346162300,23.776884,258.74,258.65,16.0818]
[1732346163499,20.0,258.73,258.65,16.0818]
[1732346163700,23.776884,258.7,258.57,16.2789]
[1732346164922,23.776884,258.68,258.57,16.2789]
[1732346165424,23.776884,258.7,258.57,16.2789]
[1732346167934,23.776884,258.7,258.58,20.0]
[1732346168626,20.0,258.71,258.58,20.0]
[1732346168924,23.776884,258.7,258.58,20.0]
[1732346177431,2.87110628,258.69,258.58,20.0]
[1732346177622,23.776884,258.7,258.58,20.0]
[1732346178409,2.87225692,258.69,258.58,20.0]
[1732346178611,2.87225692,258.69,258.57,16.2789]
[1732346178612,4.59560915,258.74,258.6,20.0]
[1732346178823,22.87227081,258.73,258.6,20.0]
[1732346179022,7.46787996,258.72,258.6,20.0]
[1732346179223,2.87227081,258.71,258.6,20.0]
[1732346179425,2.87227081,258.7,258.6,20.0]
[1732346179729,4.59622008,258.75,258.6,20.0]
[1732346179915,23.776884,258.73,258.6,20.0]
[1732346180111,2.87261426,258.72,258.6,20.0]
[1732346180333,4.59561666,258.78,258.64,20.0]
[1732346180627,2.87236886,258.77,258.64,20.0]
[1732346180836,2.87236886,258.76,258.64,20.0]
[1732346181023,2.87236886,258.75,258.66,20.0]
[1732346181223,2.87236886,258.74,258.66,20.0]
[1732346181421,4.59561666,258.78,258.66,20.0]
[1732346181626,12.047299,258.79,258.66,20.0]
[1732346181819,2.87214998,258.77,258.66,20.0]
[1732346182138,2.87214998,258.76,258.66,20.0]
[1732346182322,2.87214998,258.75,258.66,20.0]
[1732346182522,2.87214998,258.74,258.66,20.0]
[1732346182720,12.047299,258.79,258.66,20.0]
[1732346182912,12.047299,258.79,258.67,22.4105]
[1732346183121,12.047299,258.79,258.69,15.8636]
[1732346183434,12.047299,258.79,258.7,11.15803269]
[1732346189740,43.776884,258.88,258.7,11.15803269]
[1732346189935,20.0,258.85,258.7,11.15803269]
[1732346190132,2.86798831,258.84,258.7,11.15803269]
[1732346190438,26.64487231,258.83,258.7,11.15803269]
[1732346190641,23.776884,258.83,258.7,11.15803269]
[1732346192318,20.0,258.88,258.7,11.15803269]
[1732346192533,20.0,258.85,258.7,11.15803269]
[1732346192725,26.64307753,258.84,258.7,11.15803269]
[1732346193042,2.86619353,258.83,258.7,11.15803269]
[1732346194748,23.776884,258.84,258.7,11.15803269]
[1732346202543,2.77120862,258.91,258.72,20.0]
[1732346202733,20.0,258.89,258.75,20.0]
[1732346203643,20.0,258.91,258.75,20.0]
[1732346203843,2.86016307,258.9,258.75,20.0]
[1732346204034,23.776884,258.9,258.75,20.0]
[1732346204228,20.0,258.89,258.75,20.0]
[1732346204434,23.776884,258.88,258.75,20.0]
[1732346204623,14.8972883,258.92,258.75,20.0]
[1732346204825,14.8972883,258.92,258.76,15.2431]
[1732346205025,23.776884,258.91,258.77,20.0]
[1732346206940,12.047299,258.92,258.77,20.0]
[1732346207750,23.776884,258.91,258.77,20.0]
[1732346209451,12.047299,258.92,258.77,20.0]
[1732346211844,12.047299,258.92,258.82,20.0]
[1732346212031,6.24,259.05,258.84,20.0]
[1732346212226,2.85556155,259.04,258.84,20.0]
[1732346212444,7.42446003,259.04,258.88,20.0]
[1732346212626,15.3351,259.05,258.88,20.0]
[1732346213347,15.3351,259.05,258.87,6.3166]
[1732346213348,15.3351,259.05,258.92,20.0]
[1732346215154,15.3351,259.05,258.94,20.0]
[1732346217752,23.776884,259.04,258.94,20.0]
[1732346218451,23.276884,259.04,258.94,20.0]
[1732346219148,15.3351,259.05,258.94,20.0]
[1732346221125,23.776884,259.04,258.94,20.0]
[1732346221638,21.34617894,259.04,258.94,20.0]
[1732346221836,15.3351,259.05,258.95,15.8625]
[1732346222152,15.3351,259.05,258.96,20.0]
[1732346222352,6.24,259.18,258.97,15.8625]
[1732346222648,6.24,259.18,258.98,20.0]
[1732346222649,18.22027629,259.17,258.98,20.0]
[1732346222845,2.84685829,259.16,258.98,20.0]
[1732346223055,15.373418,259.17,258.98,20.0]
[1732346223233,15.373418,259.17,259.0,20.0]
[1732346223949,25.20834974,259.16,259.0,20.0]
[1732346224130,20.0,259.16,259.0,20.0]
[1732346224646,23.776884,259.13,259.0,20.0]
[1732346229157,20.0,259.12,258.99,6.6312]
[1732346229349,23.776884,259.11,258.99,6.6312]
[1732346237251,23.776884,259.11,259.0,15.3219]
[1732346239353,15.373418,259.17,259.01,20.0]
[1732346239561,15.373418,259.17,259.01,25.30470951]
[1732346240634,20.0,259.14,259.0,15.3219]
[1732346240836,23.776884,259.13,259.0,15.3219]
[1732346241148,23.776884,259.11,259.0,15.3219]
[1732346243172,25.20834974,259.1,259.0,15.3219]
[1732346243383,5.20834974,259.08,259.0,15.3219]
[1732346243974,23.776884,259.07,259.0,15.3219]
[1732346244349,23.776884,259.09,259.0,15.3219]
[1732346248661,20.0,259.06,258.95,6.6478]
[1732346248871,23.776884,259.05,258.95,6.6478]
[1732346249247,20.0,259.04,258.94,15.9031]
[1732346249453,28.98523374,259.03,258.94,15.9031]
[1732346249659,23.776884,259.03,258.94,15.9031]
[1732346250867,23.776884,259.01,258.94,15.9031]
[1732346255258,2.86770835,259.0,258.94,15.9031]
[1732346255570,23.776884,259.01,258.94,15.9031]
[1732346255755,23.776884,258.99,258.94,15.9031]
[1732346256150,23.776884,259.01,258.94,15.9031]
[1732346256352,2.86945732,259.0,258.94,15.9031]
[1732346256668,23.776884,259.01,258.94,15.9031]
[1732346256669,23.776884,258.98,258.94,15.9031]
[1732346256874,28.98523374,259.01,258.94,15.9031]
[1732346257184,23.776884,258.99,258.94,15.9031]
[1732346257373,2.86929381,258.98,258.94,15.9031]
[1732346257565,23.776884,259.0,258.94,15.9031]
[1732346257768,23.776884,258.98,258.94,15.9031]
[1732346259360,20.0,259.02,258.94,15.9031]
[1732346259668,15.3202,259.08,258.94,15.9031]
[1732346259669,20.0,259.07,258.94,15.9031]
[1732346259872,20.0,259.05,258.94,15.9031]
[1732346260175,7.45912485,259.04,258.94,15.9031]
[1732346260479,2.86889423,259.03,258.94,15.9031]
[1732346260653,2.86889423,259.02,258.94,15.9031]
[1732346260853,20.0,259.09,258.94,15.9031]
[1732346261055,20.0,259.07,258.94,15.9031]
[1732346261268,7.45825005,259.06,258.94,15.9031]
[1732346261468,2.86855771,259.05,258.94,15.9031]
[1732346261668,2.86855771,259.04,258.94,15.9031]
[1732346261865,20.0,259.11,258.94,15.9031]
[1732346262070,7.45772426,259.1,258.94,15.9031]
[1732346262264,2.81307327,259.12,258.95,20.0]
[1732346262265,2.86835548,259.09,258.95,20.0]
[1732346262475,26.64523948,259.08,258.95,20.0]
[1732346262676,2.86835548,259.07,258.97,20.0]
[1732346262882,23.776884,259.08,258.97,20.0]
[1732346263061,2.86811311,259.07,258.97,20.0]
[1732346263258,23.776884,259.08,258.97,20.0]
[1732346263455,2.86810004,259.07,258.97,20.0]
[1732346263672,23.776884,259.08,258.97,20.0]
[1732346263883,2.86810004,259.07,258.97,20.0]
[1732346264066,23.776884,259.08,258.97,20.0]
[1732346264262,2.86810192,259.07,258.98,15.4553]
[1732346264468,10.58308318,259.15,258.99,20.0]
[1732346264666,2.86795908,259.14,258.99,20.0]
[1732346264883,2.86795908,259.13,258.99,20.0]
[1732346265081,2.86795908,259.12,258.99,20.0]
[1732346265262,2.86795908,259.11,258.99,20.0]
[1732346265458,2.86795908,259.1,258.99,20.0]
[1732346265668,20.0,259.13,258.99,20.0]
[1732346265883,7.45648495,259.12,258.99,20.0]
[1732346266088,2.86762535,259.11,258.99,20.0]
[1732346266267,20.0,259.13,258.99,20.0]
[1732346266466,23.3965904,259.17,258.99,20.0]
[1732346266467,2.86745381,259.12,258.99,20.0]
[1732346266678,2.86745381,259.11,258.99,20.0]
[1732346266981,28.36477609,259.14,258.99,20.0]
[1732346267163,4.58786064,259.13,258.99,20.0]
[1732346267365,12.04282388,259.13,258.99,20.0]
[1732346267559,2.86729355,259.12,258.99,20.0]
[1732346267766,4.58766969,259.13,258.99,20.0]
[1732346267767,2.86729355,259.11,258.99,20.0]
[1732346267982,4.58766969,259.13,258.99,20.0]
[1732346268198,2.86717315,259.12,258.99,20.0]
[1732346268368,23.776884,259.14,258.99,20.0]
[1732346268685,2.8668775,259.13,258.99,20.0]
[1732346268982,2.8668775,259.12,258.99,20.0]
[1732346269181,23.776884,259.14,258.99,20.0]
[1732346269400,7.45346565,259.13,258.99,20.0]
[1732346269687,2.8666923,259.12,258.99,20.0]
[1732346269857,7.45346565,259.13,258.99,20.0]
[1732346270063,2.8666923,259.12,258.99,20.0]
[1732346270287,2.8666923,259.11,258.99,20.0]
[1732346270460,23.776884,259.14,258.99,20.0]
[1732346270659,2.86653132,259.13,258.99,20.0]
[1732346270866,7.45316377,259.13,258.99,20.0]
[1732346273278,23.776884,259.14,258.99,20.0]
[1732346273464,2.86639305,259.12,258.99,20.0]
[1732346273788,2.86639305,259.11,258.99,20.0]
[1732346273967,2.86639305,259.1,258.99,20.0]
[1732346274288,23.776884,259.12,258.99,20.0]
[1732346274471,23.776884,259.1,258.99,20.0]
[1732346274675,23.776884,259.12,258.99,20.0]
[1732346274871,2.86635942,259.11,258.99,20.0]
[1732346275074,23.776884,259.09,258.98,15.4553]
[1732346275272,2.86650739,259.08,258.98,15.4553]
[1732346275474,2.86650739,259.07,258.98,15.4553]
[1732346275668,23.776884,259.08,258.98,15.4553]
[1732346275871,2.86677464,259.07,258.98,15.4553]
[1732346276193,23.776884,259.1,258.98,15.4553]
[1732346276383,23.776884,259.08,258.98,15.4553]
[1732346276677,2.86679406,259.07,258.98,15.4553]
[1732346276908,2.86688631,259.06,258.98,15.4553]
[1732346277084,4.58695414,259.09,258.98,15.4553]
[1732346277267,2.86675552,259.08,258.98,15.4553]
[1732346277667,2.86675552,259.07,258.98,15.4553]
[1732346277874,4.58695414,259.09,258.98,15.4553]
[1732346277875,2.86675552,259.06,258.98,15.4553]
[1732346278075,2.86675552,259.05,258.98,15.4553]
[1732346278380,23.776884,259.08,258.98,15.4553]
[1732346278576,2.86696049,259.07,258.98,15.4553]
[1732346278796,2.86696049,259.06,258.98,15.4553]
[1732346278991,23.776884,259.1,258.98,15.4553]
[1732346279290,23.776884,259.08,258.98,15.4553]
[1732346279492,2.8669523,259.07,258.98,15.4553]
[1732346279863,7.45419318,259.07,258.98,15.4553]
[1732346281088,2.8669523,259.06,258.98,15.4553]
[1732346281275,23.776884,259.1,258.98,15.4553]
[1732346281472,23.776884,259.08,258.98,15.4553]
[1732346281671,2.86692343,259.07,258.98,15.4553]
[1732346281986,20.0,259.13,258.98,15.4553]
[1732346282183,7.45353181,259.12,258.99,20.0]
[1732346282386,2.86660239,259.11,258.99,20.0]
[1732346282569,2.86653629,259.1,258.99,20.0]
[1732346282768,2.86653629,259.09,258.99,20.0]
[1732346282969,2.8666171,259.08,258.99,20.0]
[1732346283188,4.58645807,259.12,258.99,20.0]
[1732346283378,26.64355041,259.11,258.99,20.0]
[1732346283686,2.86666641,259.1,258.99,20.0]
[1732346284279,7.45365851,259.1,258.99,20.0]
[1732346285482,2.86666641,259.1,258.99,20.0]
[1732346285870,7.45419228,259.1,258.99,20.0]
[1732346286271,23.776884,259.11,258.99,20.0]
[1732346286498,7.45502754,259.1,258.99,20.0]
[1732346286691,0.83080354,259.09,258.99,20.0]
[1732346286904,4.58770926,259.1,258.99,20.0]
[1732346287274,23.776884,259.09,258.98,15.4553]
[1732346287582,4.58823784,259.08,258.98,15.4553]
[1732346287791,23.776884,259.11,258.98,15.4553]
[1732346288098,23.776884,259.09,258.98,15.4553]
[1732346288285,4.58820213,259.08,258.98,15.4553]
[1732346289803,23.776884,259.11,258.98,15.4553]
[1732346290094,23.776884,259.09,258.98,15.4553]
[1732346290307,4.58837997,259.08,258.98,15.4553]
[1732346290479,23.776884,259.09,258.98,15.4553]
[1732346290985,2.78940423,259.14,258.98,15.4553]
[1732346291293,23.776884,259.14,258.99,20.0]
[1732346291496,23.776884,259.12,258.99,20.0]
[1732346292700,5.20834974,259.16,258.99,20.0]
[1732346292899,43.776884,259.15,258.99,20.0]
[1732346293104,4.58719896,259.14,258.99,20.0]
[1732346294394,23.776884,259.13,258.99,20.0]
[1732346294702,23.776884,259.14,258.99,20.0]
[1732346294872,24.58671739,259.13,258.99,20.0]
[1732346295077,20.0,259.13,258.99,20.0]
[1732346295778,22.83674102,259.16,258.99,20.0]
[1732346295988,24.58693333,259.15,258.99,20.0]
[1732346296296,24.58693333,259.14,258.99,20.0]
[1732346296474,20.0,259.14,258.99,20.0]
[1732346296801,4.58742498,259.13,258.99,20.0]
[1732346297106,23.776884,259.12,258.99,20.0]
[1732346298200,20.0,259.14,258.99,20.0]
[1732346298397,4.5887905,259.13,258.99,20.0]
[1732346298781,2.86797077,259.12,258.99,20.0]
[1732346298981,2.86797077,259.11,258.99,20.0]
[1732346299183,2.86797077,259.1,258.99,20.0]
[1732346299490,4.5887905,259.13,258.99,20.0]
[1732346299687,2.86830228,259.12,258.99,20.0]
[1732346300000,2.86830228,259.11,258.99,20.0]
[1732346300205,7.45709278,259.13,258.99,20.0]
[1732346300384,2.86830228,259.12,258.99,20.0]
[1732346300585,2.86830228,259.11,258.99,20.0]
[1732346300795,2.86830228,259.1,258.99,20.0]
[1732346301006,4.5887905,259.13,258.89,2.5]
[1732346301007,7.45709278,259.13,259.0,22.6451]
[1732346301218,2.86888146,259.12,259.0,22.6451]
[1732346301502,2.86888146,259.11,259.0,22.6451]
[1732346301680,2.86888146,259.1,259.0,22.6451]
[1732346301880,4.5887905,259.13,259.0,22.6451]
[1732346302081,2.86949704,259.12,259.0,22.6451]
[1732346302283,2.86949704,259.11,259.0,22.6451]
[1732346302585,2.86949704,259.1,259.0,22.6451]
[1732346302882,4.5887905,259.13,259.0,22.6451]
[1732346303091,2.87044091,259.09,259.0,22.6451]
[1732346303306,2.87044091,259.08,259.0,22.6451]
[1732346303598,4.59270545,259.11,259.0,22.6451]
[1732346303793,7.46425672,259.11,259.0,22.6451]
[1732346304103,23.776884,259.1,259.0,22.6451]
[1732346304282,2.87155127,259.09,259.0,22.6451]
[1732346304484,7.46808426,259.09,259.0,22.6451]
[1732346306399,23.776884,259.1,259.0,22.6451]
[1732346306595,2.87405822,259.08,259.0,22.6451]
[1732346306797,2.87405822,259.07,259.0,22.6451]
[1732346306998,7.47255138,259.09,259.0,22.6451]
[1732346307387,4.59849316,259.09,259.0,22.6451]
[1732346311317,23.776884,259.08,259.0,22.6451]
[1732346312210,4.59918191,259.07,259.0,22.6451]
[1732346316396,2.59918191,259.07,259.0,22.6451]
[1732346317401,23.776884,259.06,259.0,22.6451]
[1732346317611,23.776884,259.06,259.0,16.3181]
[1732346318408,23.776884,259.08,258.94,21.6396]
[1732346318712,29.77110758,259.06,258.94,21.6396]
[1732346319014,23.776884,259.07,258.94,21.6396]
[1732346319210,29.77110758,259.07,258.94,21.6396]
[1732346319517,23.776884,259.07,258.94,21.6396]
[1732346319823,29.77110758,259.07,258.94,21.6396]
[1732346320616,23.776884,259.07,258.94,21.6396]
[1732346326506,4.59483923,259.06,258.94,21.6396]
[1732346327031,23.776884,259.05,258.94,21.6396]
[1732346327211,23.776884,259.03,258.94,21.1396]
[1732346328714,5.99422358,259.08,258.94,21.1396]
[1732346328911,10.58764681,259.09,258.95,20.0]
[1732346329234,10.58764681,259.1,258.95,20.0]
[1732346329530,5.99422358,259.1,258.95,20.0]
[1732346331130,23.776884,259.09,258.95,20.0]
[1732346331328,4.59342323,259.08,258.95,20.0]
[1732346331531,23.776884,259.07,258.95,20.0]
[1732346331736,4.59342323,259.06,258.95,20.0]
[1732346332334,5.99422358,259.12,258.94,22.3732]
[1732346332526,4.59171055,259.13,258.99,20.0]
[1732346332732,10.58593413,259.16,259.01,20.0]
[1732346333235,4.59171055,259.16,259.01,20.0]
[1732346333914,23.776884,259.15,259.0,15.9269]
[1732346334116,23.776884,259.13,259.0,15.9269]
[1732346334308,23.776884,259.11,259.0,15.9269]
[1732346335036,23.776884,259.14,259.0,15.9269]
[1732346335222,4.59124966,259.13,259.0,15.9269]
[1732346335538,10.58547324,259.16,259.0,15.9269]
[1732346335832,5.20834974,259.15,259.0,15.9269]
[1732346336037,25.99422358,259.14,259.0,15.9269]
[1732346336216,4.59124966,259.13,259.0,15.9269]
[1732346336543,23.776884,259.12,259.0,15.9269]
[1732346336743,23.776884,259.1,259.0,15.9269]
[1732346337619,23.776884,259.1,258.92,0.57909198]
[1732346337620,5.99422358,259.15,259.02,16.3804]
[1732346337826,4.59076825,259.16,259.02,16.3804]
[1732346339140,23.776884,259.15,259.02,16.3804]
[1732346339343,4.59076825,259.14,259.02,16.3804]
[1732346339648,23.776884,259.13,259.02,16.3804]